bitfinex/quotes_ETHUSD_20230118
["timestamp","ask_amount","ask_price","bid_price","bid_amount"]
[1674085023371,3.29174759,1522.8,1522.6,0.070597]
[1674085023559,0.066,1522.9,1522.6,1.20539497]
[1674085023749,3.066,1523.0,1522.6,1.20539497]
[1674085023972,0.06799695,1523.1,1522.6,7.77308497]
[1674085024367,0.00199695,1523.1,1522.9,8.10032]
[1674085024500,0.00199695,1523.1,1523.0,1.536]
[1674085024701,0.00199695,1523.1,1523.0,14.66796]
[1674085024915,0.00199695,1523.1,1523.0,17.863988]
[1674085025333,0.00199695,1523.1,1523.0,29.733388]
[1674085025602,0.00199695,1523.1,1523.0,11.9354]
[1674085026201,1.97165695,1523.1,1523.0,11.9354]
[1674085026521,1.97165695,1523.1,1523.0,1.036]
[1674085026522,0.00199695,1523.1,1523.0,1.036]
[1674085026773,0.00199695,1523.1,1523.0,0.97]
[1674085026929,0.00199695,1523.1,1523.0,2.28671]
[1674085027585,0.00199695,1523.1,1522.9,12.2631]
[1674085027801,1.97169695,1523.1,1522.9,12.2631]
[1674085028038,0.00199695,1523.1,1522.9,12.2631]
[1674085028618,1.97168695,1523.1,1522.9,12.2631]
[1674085029006,1.97168695,1523.1,1522.9,0.066]
[1674085029257,1.97168695,1523.1,1522.7,5.066]
[1674085029602,1.97168695,1523.1,1522.8,1.0]
[1674085029974,0.00199695,1523.1,1522.8,1.0]
[1674085030188,0.00199695,1523.1,1522.8,7.56667]
[1674085030378,0.00199695,1523.1,1522.8,14.19952]
[1674085030589,1.97168695,1523.1,1522.8,0.066]
[1674085030802,1.97168695,1523.1,1522.7,7.7393635]
[1674085031115,7.62725523,1523.1,1522.7,5.066]
[1674085031358,12.56075523,1523.1,1522.7,5.066]
[1674085031546,1.96992,1522.9,1522.7,0.066]
[1674085031761,6.18180535,1522.9,1522.6,12.588397]
[1674085031991,0.066,1522.9,1522.6,12.588397]
[1674085032219,5.53018695,1523.1,1522.6,12.588397]
[1674085032452,5.82193454,1523.1,1522.7,1.2588397]
[1674085032607,5.82193454,1523.1,1522.7,16.63736402]
[1674085032608,0.06799695,1523.1,1522.7,16.63736402]
[1674085032818,0.06799695,1523.1,1522.7,18.08036402]
[1674085032819,0.00199695,1523.1,1522.7,18.08036402]
[1674085033028,0.00199695,1523.1,1522.8,8.3746664]
[1674085033258,0.00199695,1523.1,1522.8,1.8740364]
[1674085033498,0.00199695,1523.1,1522.9,1.0]
[1674085034026,0.066,1523.3,1523.0,1.2355113]
[1674085034243,0.004597,1523.7,1523.1,15.7044397]
[1674085034397,0.004597,1523.7,1523.2,1.57044397]
[1674085034603,0.004597,1523.7,1523.2,8.13537397]
[1674085034989,1.973487,1523.7,1523.2,1.63444397]
[1674085035136,1.973487,1523.7,1523.1,6.63155]
[1674085035340,6.64223459,1523.7,1523.1,11.63155]
[1674085035568,3.95597105,1523.6,1523.1,5.066]
[1674085035780,1.9693,1523.4,1523.1,5.066]
[1674085037199,3.29174759,1523.3,1523.1,5.066]
[1674085037410,6.29174759,1523.2,1523.1,0.066]
[1674085037623,3.39517476,1523.2,1523.0,12.5007]
[1674085037779,1.9274,1523.3,1523.0,12.5007]
[1674085037989,10.12258759,1523.3,1523.0,12.5007]
[1674085038246,10.18858759,1523.3,1523.0,12.5007]
[1674085038414,5.52784,1523.3,1523.0,12.5007]
[1674085040454,7.49733,1523.3,1523.0,12.5007]
[1674085040627,3.29174759,1523.2,1523.0,12.5007]
[1674085040839,3.93932,1523.1,1523.0,12.5007]
[1674085041029,3.93932,1523.1,1523.0,0.066]
[1674085041246,3.93932,1523.1,1522.8,5.066]
[1674085041455,3.93932,1523.1,1522.8,0.066]
[1674085041664,3.93932,1523.1,1522.7,24.9309]
[1674085041665,4.86598776,1523.1,1522.7,24.9309]
[1674085041929,2.89632776,1523.1,1522.7,16.6696]
[1674085042120,2.03561,1523.2,1522.7,29.80411]
[1674085042331,8.80832,1523.3,1522.9,19.69899]
[1674085042332,0.066,1523.3,1522.9,19.69899]
[1674085042521,0.070597,1523.7,1523.0,1.22688943]
[1674085042730,0.070597,1523.7,1523.2,6.56485]
[1674085042731,3.29634459,1523.7,1523.2,6.56485]
[1674085042957,3.78864459,1523.7,1523.2,0.066]
[1674085043190,3.78864459,1523.7,1523.1,11.6696]
[1674085043406,3.67061205,1523.6,1523.1,11.6696]
[1674085043557,3.29174759,1523.5,1523.1,12.6696]
[1674085043763,3.29174759,1523.5,1523.1,11.6696]
[1674085044026,0.066,1523.6,1523.1,18.23515]
[1674085044235,0.496897,1523.7,1523.2,2.16696]
[1674085044456,0.004597,1523.7,1523.3,13.12898]
[1674085044616,0.004597,1523.7,1523.4,1.312898]
[1674085044976,0.004597,1523.7,1523.5,13.12766]
[1674085045130,0.004597,1523.7,1523.5,14.57066]
[1674085045552,0.004597,1523.7,1523.6,1.0]
[1674085045761,0.004597,1523.7,1523.6,15.683866]
[1674085046027,0.004597,1523.7,1523.6,17.114866]
[1674085046392,0.004597,1523.7,1523.6,18.29435535]
[1674085046917,0.004597,1523.7,1523.6,19.95194904]
[1674085047497,0.004597,1523.7,1523.6,23.81227022]
[1674085048020,0.004597,1523.7,1523.6,7.623066]
[1674085048278,0.004597,1523.7,1523.6,6.623066]
[1674085049506,0.004597,1523.7,1523.6,1.623066]
[1674085049711,0.004597,1523.7,1523.6,1.557066]
[1674085049956,0.004597,1523.7,1523.5,18.50023]
[1674085050179,0.004597,1523.7,1523.5,11.9364]
[1674085050549,0.004597,1523.7,1523.5,11.9344]
[1674085050748,0.004597,1523.7,1523.5,11.9364]
[1674085051715,0.004597,1523.7,1523.5,11.9344]
[1674085051926,0.004597,1523.7,1523.5,11.9364]
[1674085052322,0.004597,1523.7,1523.5,22.148358]
[1674085052532,0.004597,1523.7,1523.5,28.712188]
[1674085052800,0.004597,1523.7,1523.5,30.089188]
[1674085052966,0.004597,1523.7,1523.6,1.0]
[1674085053187,0.004597,1523.7,1523.6,7.5634]
[1674085053432,0.004597,1523.7,1523.6,17.9580588]
[1674085053744,0.004597,1523.7,1523.6,19.3350588]
[1674085053961,0.004597,1523.7,1523.6,20.51454815]
[1674085054334,0.004597,1523.7,1523.6,25.51454815]
[1674085055430,0.004597,1523.7,1523.6,16.3946588]
[1674085057108,0.004597,1523.7,1523.6,8.8312588]
[1674085057424,0.974597,1523.7,1523.6,5.06381984]
[1674085057785,2.943487,1523.7,1523.6,5.06381984]
[1674085058544,4.912377,1523.7,1523.6,5.06381984]
[1674085058776,5.6563217,1523.7,1523.6,5.06381984]
[1674085058948,5.7223217,1523.7,1523.6,5.06381984]
[1674085059154,0.070597,1523.7,1523.6,5.06381984]
[1674085059525,0.004597,1523.7,1523.6,1.09981984]
[1674085059741,0.004597,1523.7,1523.6,1.036]
[1674085060625,0.004597,1523.7,1523.6,2.036]
[1674085061537,0.004597,1523.7,1523.6,1.0]
[1674085061865,0.004597,1523.7,1523.5,23.49799984]
[1674085062941,0.004597,1523.7,1523.6,1.0]
[1674085064167,0.004597,1523.7,1523.5,5.06381984]
[1674085064168,3.942377,1523.7,1523.5,5.06381984]
[1674085064322,1.973487,1523.7,1523.5,5.06381984]
[1674085064538,3.0634997,1523.7,1523.5,5.06381984]
[1674085065218,5.0323897,1523.7,1523.5,5.06381984]
[1674085065434,5.0983897,1523.7,1523.5,0.06381984]
[1674085065584,5.0983897,1523.7,1523.4,5.06381984]
[1674085066451,0.50983897,1523.6,1523.4,5.06381984]
[1674085066648,2.47892897,1523.6,1523.4,5.06381984]
[1674085066853,2.531787,1523.7,1523.4,5.06381984]
[1674085067071,0.496897,1523.7,1523.5,1.0]
[1674085067386,0.004597,1523.7,1523.5,7.56379]
[1674085067593,0.004597,1523.7,1523.5,23.33087582]
[1674085068025,0.004597,1523.7,1523.5,25.89167286]
[1674085068234,0.004597,1523.7,1523.6,2.54879704]
[1674085068463,0.004597,1523.7,1523.6,27.23899704]
[1674085068648,0.004597,1523.7,1523.6,32.74218942]
[1674085070421,0.004597,1523.7,1523.6,11.62721984]
[1674085071386,0.004597,1523.7,1523.6,18.19061984]
[1674085071590,0.004597,1523.7,1523.6,11.62721984]
[1674085072361,0.004597,1523.7,1523.6,6.62721984]
[1674085072579,0.974597,1523.7,1523.6,0.06381984]
[1674085072723,1.0720567,1523.7,1523.5,5.06381984]
[1674085072932,0.1020567,1523.7,1523.5,5.06381984]
[1674085073253,0.004597,1523.7,1523.5,18.19141984]
[1674085073502,0.004597,1523.7,1523.5,13.19141984]
[1674085073717,0.004597,1523.7,1523.5,0.06381984]
[1674085073880,0.004597,1523.7,1523.5,6.56382]
[1674085074091,0.004597,1523.7,1523.5,6.62763984]
[1674085075473,0.004597,1523.7,1523.5,11.62763984]
[1674085075681,0.004597,1523.7,1523.5,27.23084882]
[1674085076143,0.004597,1523.7,1523.6,1.0]
[1674085076332,0.004597,1523.7,1523.6,7.5634]
[1674085076507,0.004597,1523.7,1523.6,12.62721984]
[1674085076928,0.004597,1523.7,1523.6,25.75401984]
[1674085077187,0.004597,1523.7,1523.6,29.23335872]
[1674085080119,0.004597,1523.7,1523.6,21.66995872]
[1674085081085,0.004597,1523.7,1523.6,18.19061984]
[1674085081453,0.974597,1523.7,1523.6,5.06381984]
[1674085082501,0.974597,1523.7,1523.6,0.06381984]
[1674085082707,0.004597,1523.7,1523.5,11.62736984]
[1674085082923,0.004597,1523.7,1523.6,6.5634]
[1674085083161,0.004597,1523.7,1523.6,6.62721984]
[1674085083811,0.004597,1523.7,1523.6,7.62721984]
[1674085084187,0.0016322,1523.7,1523.6,24.46919015]
[1674085084393,0.0016322,1523.7,1523.6,29.46919015]
[1674085084626,0.0016322,1523.7,1523.6,34.21889887]
[1674085084993,0.0016322,1523.7,1523.6,35.24607519]
[1674085085146,0.0016322,1523.7,1523.6,38.61636603]
[1674085085356,0.05311089,1524.1,1523.7,1.00291664]
[1674085085624,0.05311089,1524.1,1524.0,19.68501]
[1674085085939,0.05311089,1524.1,1524.0,19.74882984]
[1674085086469,0.05311089,1524.1,1524.0,27.22521644]
[1674085086661,0.05311089,1524.1,1524.0,25.00124786]
[1674085086829,0.05311089,1524.1,1524.0,28.37863296]
[1674085087209,0.05311089,1524.1,1524.0,30.41955894]
[1674085087370,0.00011089,1524.1,1524.0,35.41955894]
[1674085087816,0.00011089,1524.1,1524.0,33.89654783]
[1674085088162,0.00011089,1524.1,1524.0,31.39016787]
[1674085088520,0.00011089,1524.1,1524.0,30.01916787]
[1674085088861,0.00011089,1524.1,1524.0,29.78916787]
[1674085089926,0.00011089,1524.1,1524.0,29.271253]
[1674085090142,0.00011089,1524.1,1524.0,22.709583]
[1674085091718,0.00011089,1524.1,1524.0,11.62548984]
[1674085091932,0.00011089,1524.1,1524.0,5.06381984]
[1674085092151,0.00011089,1524.1,1524.0,6.2088579]
[1674085092466,0.00011089,1524.1,1524.0,19.3321979]
[1674085094183,0.04592232,1524.3,1524.0,36.31246885]
[1674085094434,0.04592232,1524.3,1524.2,1.377]
[1674085094603,0.04592232,1524.3,1524.2,32.57488459]
[1674085094978,0.00092232,1524.3,1524.2,29.5597939]
[1674085095184,0.00092232,1524.3,1524.2,39.58472651]
[1674085095400,0.05197323,1524.5,1524.2,54.16201776]
[1674085095568,0.06150852,1524.9,1524.4,2.49621146]
[1674085095923,0.06150852,1524.9,1524.8,27.60892]
[1674085096071,0.06150852,1524.9,1524.8,22.19069953]
[1674085096284,0.06150852,1524.9,1524.8,25.98459648]
[1674085096487,0.06150852,1524.9,1524.8,24.37859648]
[1674085096772,0.06150852,1524.9,1524.8,10.18594679]
[1674085096917,0.06150852,1524.9,1524.8,6.62204984]
[1674085097389,0.06150852,1524.9,1524.8,11.62204984]
[1674085097957,0.06150852,1524.9,1524.8,18.18027984]
[1674085098945,0.06150852,1524.9,1524.8,5.06381984]
[1674085099170,1.03150852,1524.9,1524.8,5.06381984]
[1674085099349,0.06150852,1524.9,1524.8,5.06381984]
[1674085100186,0.06150852,1524.9,1524.8,6.88193382]
[1674085100381,0.06150852,1524.9,1524.8,19.99839382]
[1674085100591,0.06150852,1524.9,1524.8,22.07458351]
[1674085102147,0.06150852,1524.9,1524.8,22.07258351]
[1674085102266,0.06150852,1524.9,1524.8,22.07458351]
[1674085103713,0.06150852,1524.9,1524.8,22.30458351]
[1674085104216,0.06150852,1524.9,1524.8,21.30458351]
[1674085104431,1.03150852,1524.9,1524.8,5.29381984]
[1674085104588,0.06150852,1524.9,1524.8,5.06381984]
[1674085106047,1.03150852,1524.9,1524.8,5.06381984]
[1674085106839,5.40719937,1524.9,1524.8,5.06381984]
[1674085106998,5.47319937,1524.9,1524.8,5.06381984]
[1674085107235,3.50585937,1524.9,1524.8,5.06381984]
[1674085107441,3.43985937,1524.9,1524.8,0.06381984]
[1674085107650,0.97843474,1524.7,1524.6,5.066]
[1674085108697,2.83943474,1524.7,1524.6,5.066]
[1674085108907,6.77463474,1524.7,1524.6,5.066]
[1674085109172,1.53643474,1524.7,1524.6,5.066]
[1674085109493,1.47043474,1524.7,1524.6,5.066]
[1674085110062,1.95847681,1524.7,1524.6,5.066]
[1674085110413,7.27067681,1524.7,1524.6,0.066]
[1674085110635,10.33667681,1524.7,1524.5,5.066]
[1674085110819,4.07178768,1524.6,1524.5,5.066]
[1674085111230,7.41050768,1524.6,1524.5,5.066]
[1674085111593,7.47650768,1524.6,1524.5,0.066]
[1674085111745,7.47650768,1524.6,1524.3,5.066]
[1674085111950,2.12065077,1524.5,1524.3,5.066]
[1674085112432,4.08853077,1524.5,1524.3,5.066]
[1674085112810,2.12065077,1524.5,1524.3,5.066]
[1674085113024,2.61265077,1524.5,1524.3,5.066]
[1674085113236,0.492,1524.5,1524.3,5.066]
[1674085113959,0.558,1524.6,1524.3,5.066]
[1674085114341,4.53643474,1524.7,1524.3,18.18668]
[1674085114637,0.97843474,1524.7,1524.3,22.95174896]
[1674085115083,0.97843474,1524.7,1524.4,1.0]
[1674085115216,0.97843474,1524.7,1524.5,6.55952]
[1674085115429,0.97843474,1524.7,1524.5,6.62552]
[1674085115746,0.97843474,1524.7,1524.6,1.09769704]
[1674085115953,0.97843474,1524.7,1524.6,14.21587704]
[1674085116175,0.97843474,1524.7,1524.6,15.28187704]
[1674085117421,0.97843474,1524.7,1524.6,20.28187704]
[1674085117633,0.06150852,1524.9,1524.6,21.65887704]
[1674085117898,0.06150852,1524.9,1524.8,19.67469]
[1674085118113,0.06150852,1524.9,1524.8,20.81687969]
[1674085118999,0.06150852,1524.9,1524.8,6.62423]
[1674085119212,1.03150852,1524.9,1524.8,0.066]
[1674085119457,0.06150852,1524.9,1524.6,23.89919]
[1674085119681,0.06150852,1524.9,1524.6,34.4106874]
[1674085120083,0.06150852,1524.9,1524.6,34.4086874]
[1674085120310,0.06150852,1524.9,1524.6,34.4106874]
[1674085120529,0.06150852,1524.9,1524.8,5.0]
[1674085120750,0.06150852,1524.9,1524.8,5.066]
[1674085121956,4.36784852,1524.9,1524.8,5.066]
[1674085122162,9.43880573,1524.9,1524.8,5.066]
[1674085122391,12.49416666,1524.9,1524.8,5.066]
[1674085122635,12.49416666,1524.9,1524.8,4.15740088]
[1674085122923,11.81342088,1524.9,1524.8,4.09140088]
[1674085123546,11.81342088,1524.9,1524.7,0.066]
[1674085123870,11.81342088,1524.9,1524.5,5.066]
[1674085123871,6.72128788,1524.8,1524.5,5.066]
[1674085124109,6.78728788,1524.8,1524.5,5.066]
[1674085124319,0.68148486,1524.7,1524.5,5.066]
[1674085124525,3.52457765,1524.7,1524.5,5.066]
[1674085126062,4.54659858,1524.7,1524.5,5.066]
[1674085126757,3.52457765,1524.7,1524.5,5.066]
[1674085130171,3.52457765,1524.7,1524.5,0.066]
[1674085130540,3.52457765,1524.7,1524.5,5.0]
[1674085130714,3.52457765,1524.7,1524.5,5.066]
[1674085131133,4.54659858,1524.7,1524.5,5.066]
[1674085132069,1.13614472,1524.6,1524.5,5.066]
[1674085132280,14.30229561,1524.6,1524.5,5.066]
[1674085132482,14.36829561,1524.6,1524.5,0.066]
[1674085132852,14.36829561,1524.6,1524.3,5.066]
[1674085132853,17.99175868,1524.6,1524.3,5.066]
[1674085133000,9.66232675,1524.4,1524.3,5.066]
[1674085133224,12.04617205,1524.4,1524.3,5.066]
[1674085133610,12.19724168,1524.4,1524.3,0.066]
[1674085133758,14.18296666,1524.4,1524.0,5.066]
[1674085133951,3.4921,1524.3,1524.0,5.066]
[1674085134161,7.42842,1524.3,1524.0,5.066]
[1674085134368,7.49442,1524.3,1524.0,5.066]
[1674085134633,14.95490194,1524.3,1524.0,5.066]
[1674085134843,15.97813399,1524.3,1524.0,5.066]
[1674085135218,16.97813399,1524.3,1524.0,5.066]
[1674085135424,15.95490194,1524.3,1524.0,5.066]
[1674085135896,15.27270026,1524.3,1524.0,5.066]
[1674085136104,1.96837,1524.1,1524.0,5.066]
[1674085136471,5.46057,1524.1,1524.0,0.066]
[1674085136682,5.46057,1524.1,1523.9,5.18746244]
[1674085136683,5.52657,1524.1,1523.9,5.18746244]
[1674085139207,7.49494,1524.1,1523.9,5.18746244]
[1674085139766,9.46331,1524.1,1523.9,5.18746244]
[1674085139972,10.7592,1524.1,1523.9,5.18746244]
[1674085143427,10.7592,1524.1,1523.9,0.18746244]
[1674085143616,10.7592,1524.1,1523.9,0.12146244]
[1674085143833,14.05094759,1524.1,1523.9,0.12146244]
[1674085144106,11.26524759,1524.0,1523.9,0.12146244]
[1674085144320,16.20823852,1524.0,1523.9,0.12146244]
[1674085144485,16.70043852,1524.0,1523.9,0.12146244]
[1674085144670,17.70043852,1524.0,1523.9,0.12146244]
[1674085146156,18.3826402,1524.0,1523.9,0.09882099]
[1674085146678,18.6126402,1524.0,1523.9,0.09882099]
[1674085146886,29.6126402,1524.0,1523.9,0.09882099]
[1674085147138,30.24938193,1524.0,1523.9,0.09882099]
[1674085147326,30.38098749,1524.0,1523.9,0.09882099]
[1674085149188,30.24938193,1524.0,1523.9,0.09882099]
[1674085149395,37.11738193,1524.0,1523.9,0.09882099]
[1674085149664,4.71173819,1523.9,1523.7,0.12437908]
[1674085149860,15.39678759,1523.8,1523.7,0.12437908]
[1674085150080,15.46278759,1523.8,1523.7,0.12437908]
[1674085150234,15.95508759,1523.8,1523.7,0.12437908]
[1674085151730,18.70708759,1523.8,1523.7,0.12437908]
[1674085151935,21.11264434,1523.8,1523.7,0.12437908]
[1674085153232,27.94838607,1523.8,1523.7,0.12437908]
[1674085153657,27.94838607,1523.8,1523.5,0.12146244]
[1674085153882,13.24115813,1523.6,1523.5,0.12146244]
[1674085154185,24.18323813,1523.6,1523.5,0.12146244]
[1674085154357,26.92793679,1523.6,1523.1,0.18746244]
[1674085154549,7.28459,1523.2,1523.1,0.12146244]
[1674085154758,5.37754211,1523.2,1523.1,0.12146244]
[1674085154967,2.03553,1523.2,1523.1,0.12146244]
[1674085155316,4.96953,1523.2,1523.1,0.12146244]
[1674085158338,6.93906,1523.2,1523.1,0.12146244]
[1674085158538,7.00506,1523.2,1523.1,0.12146244]
[1674085160488,13.16378659,1523.2,1523.1,0.12146244]
[1674085160738,15.03228659,1523.2,1523.1,0.12146244]
[1674085162314,7.00506,1523.2,1523.1,1.15746244]
[1674085162470,3.066,1523.2,1523.1,1.09146244]
[1674085162683,3.0,1523.2,1523.1,0.12146244]
[1674085163667,8.96177959,1523.2,1523.1,0.12146244]
[1674085163879,12.96683959,1523.2,1523.1,0.12146244]
[1674085164068,13.45933959,1523.2,1523.1,0.12146244]
[1674085164692,14.83233959,1523.2,1523.1,0.12146244]
[1674085171283,12.96683959,1523.2,1523.1,1.09146244]
[1674085171417,10.29680759,1523.2,1523.1,1.09146244]
[1674085171628,12.26633759,1523.2,1523.1,0.12146244]
[1674085174783,12.75883759,1523.2,1523.1,0.12146244]
[1674085175256,14.13483759,1523.2,1523.1,0.11884978]
[1674085175471,15.74497135,1523.2,1523.1,0.11884978]
[1674085176794,15.97497135,1523.2,1523.1,0.11884978]
[1674085176994,16.61171308,1523.2,1523.1,0.11884978]
[1674085177669,17.98671308,1523.2,1522.9,0.12146244]
[1674085177994,13.45959565,1523.0,1522.9,0.12146244]
[1674085178307,18.10138565,1523.0,1522.9,0.12146244]
[1674085178640,22.23062738,1523.0,1522.8,0.15642157]
[1674085178776,11.61341033,1522.9,1522.8,0.15642157]
[1674085178990,17.58917033,1522.9,1522.8,0.15642157]
[1674085179196,18.22591206,1522.9,1522.8,0.15642157]
[1674085180459,19.60191206,1522.9,1522.8,0.15642157]
[1674085180702,7.88072,1522.7,1522.6,0.16101857]
[1674085180915,15.61446759,1522.7,1522.6,0.16101857]
[1674085181150,19.33680932,1522.7,1522.5,0.08398268]
[1674085181320,19.33680932,1522.7,1522.4,0.1568066]
[1674085181321,8.94812852,1522.6,1522.4,0.1568066]
[1674085181504,6.04374759,1522.5,1522.4,0.1568066]
[1674085181720,14.91736932,1522.5,1522.4,0.1568066]
[1674085182307,12.39732759,1522.5,1522.4,0.1568066]
[1674085182616,14.22449044,1522.5,1522.4,0.1568066]
[1674085184625,23.11923217,1522.5,1522.2,0.17229853]
[1674085184839,11.83588759,1522.4,1522.2,0.17229853]
[1674085185029,12.39458759,1522.4,1522.2,0.17229853]
[1674085185222,14.18132481,1522.4,1522.2,0.17229853]
[1674085185437,13.68862481,1522.4,1522.2,0.17229853]
[1674085186955,2.03657,1522.4,1522.3,1.05329853]
[1674085187273,2.03644,1522.5,1522.3,1.05329853]
[1674085187433,1.9704,1522.6,1522.3,1.05329853]
[1674085187434,2.0364,1522.6,1522.3,1.05329853]
[1674085187644,5.26214759,1522.6,1522.3,1.17585824]
[1674085187856,5.32814759,1522.6,1522.3,1.17585824]
[1674085188065,5.32814759,1522.6,1522.3,2.55185824]
[1674085188066,0.066,1522.6,1522.3,2.55185824]
[1674085188277,1.97014,1522.8,1522.4,1.62218582]
[1674085188483,5.26188759,1522.8,1522.4,0.25518582]
[1674085188716,5.32788759,1522.8,1522.4,0.25518582]
[1674085188940,2.03614,1522.8,1522.4,2.61918582]
[1674085189097,1.97014,1522.8,1522.5,0.26191858]
[1674085189743,1.97014,1522.8,1522.4,2.61918582]
[1674085189979,3.29174759,1522.7,1522.4,0.25518582]
[1674085190194,10.23236759,1522.6,1522.3,5.23829853]
[1674085190365,10.29836759,1522.6,1522.3,0.23629853]
[1674085190572,3.29174759,1522.5,1522.3,0.17229853]
[1674085190781,3.94114,1522.4,1522.3,0.17229853]
[1674085191251,1.97057,1522.4,1522.3,0.17229853]
[1674085192998,12.71852935,1522.4,1522.3,0.17229853]
[1674085193250,14.09152935,1522.4,1522.3,0.17229853]
[1674085194907,13.09152935,1522.4,1522.3,0.17229853]
[1674085196186,13.32152935,1522.4,1522.3,0.17229853]
[1674085197430,13.22152935,1522.4,1522.3,0.17229853]
[1674085197925,7.19888759,1522.4,1522.3,1.05329853]
[1674085198078,1.93657,1522.4,1522.3,1.05329853]
[1674085198291,2.03653,1522.5,1522.3,1.05329853]
[1674085198465,2.03653,1522.5,1522.3,1.17585824]
[1674085198466,5.26227759,1522.5,1522.3,1.17585824]
[1674085198676,2.03653,1522.5,1522.3,1.17585824]
[1674085198884,1.97053,1522.5,1522.3,1.17585824]
[1674085200194,4.97053,1522.5,1522.3,1.17585824]
[1674085200778,4.97053,1522.5,1522.3,1.05329853]
[1674085202279,2.03635,1522.6,1522.3,2.42929853]
[1674085202466,2.03621,1522.7,1522.4,1.376]
[1674085202676,1.97021,1522.7,1522.5,0.1376]
[1674085202949,1.97021,1522.7,1522.3,0.17229853]
[1674085202950,3.29174759,1522.6,1522.3,0.17229853]
[1674085203262,9.53224235,1522.5,1522.3,0.17229853]
[1674085203579,9.26906759,1522.5,1522.3,0.17229853]
[1674085205096,6.29174759,1522.4,1522.3,0.17229853]
[1674085205307,6.29174759,1522.4,1522.3,8.53e-06]
[1674085205308,12.16058759,1522.4,1522.3,8.53e-06]
[1674085205517,14.33538235,1522.4,1522.2,0.17229853]
[1674085205732,5.89474759,1522.3,1522.2,0.17229853]
[1674085205997,12.90214759,1522.3,1522.2,0.17229853]
[1674085206526,12.90214759,1522.3,1522.0,0.15372132]
[1674085206743,10.45076235,1522.2,1522.0,0.15372132]
[1674085206890,11.17558759,1522.1,1522.0,0.15372132]
[1674085207260,14.24158759,1522.1,1522.0,0.15372132]
[1674085207848,8.97888,1522.1,1522.0,1.10072132]
[1674085208503,8.97888,1522.1,1522.0,0.21972132]
[1674085208832,8.97888,1522.1,1522.0,0.15372132]
[1674085210387,13.16851559,1522.1,1522.0,0.15372132]
[1674085214470,15.03431559,1522.1,1522.0,0.15372132]
[1674085214680,15.26431559,1522.1,1522.0,0.15372132]
[1674085215112,15.03431559,1522.1,1522.0,0.15372132]
[1674085215572,15.54231559,1522.1,1522.0,0.15372132]
[1674085215757,14.16931559,1522.1,1522.0,0.15372132]
[1674085218374,15.54231559,1522.1,1522.0,0.15372132]
[1674085219607,15.54231559,1522.1,1522.0,0.11269206]
[1674085219974,16.22451727,1522.1,1522.0,0.11269206]
[1674085220873,16.22451727,1522.1,1522.0,2.06e-06]
[1674085221079,16.22451727,1522.1,1521.8,0.17033983]
[1674085221289,10.25388,1521.9,1521.8,0.17033983]
[1674085221551,13.61162759,1521.9,1521.8,0.17033983]
[1674085221767,19.37972927,1521.9,1521.6,0.23112602]
[1674085221979,3.29174759,1521.7,1521.6,0.16512602]
[1674085222188,14.17762759,1521.7,1521.6,0.16512602]
[1674085222508,14.24362759,1521.7,1521.6,0.16512602]
[1674085225303,5.98041,1521.7,1521.6,0.16512602]
[1674085225743,5.98041,1521.7,1521.6,0.31238413]
[1674085226515,0.508,1522.1,1521.6,3.06238413]
[1674085226847,0.01,1521.7,1521.6,15.33509772]
[1674085227022,0.508,1522.1,1521.6,23.34911772]
[1674085227192,0.508,1522.1,1521.8,1.376]
[1674085228461,3.79974759,1522.1,1521.7,12.9808]
[1674085228680,3.79974759,1522.1,1521.7,13.49058577]
[1674085229632,5.91366,1521.9,1521.7,11.6108]
[1674085229875,9.27140759,1521.9,1521.7,11.6108]
[1674085230368,3.29174759,1521.8,1521.7,11.6108]
[1674085231239,3.29174759,1521.8,1521.7,0.066]
[1674085231561,3.29174759,1521.8,1521.6,0.16512602]
[1674085231717,3.29174759,1521.7,1521.6,0.16512602]
[1674085231926,6.29174759,1521.7,1521.6,0.16512602]
[1674085232141,6.35774759,1521.7,1521.6,0.16512602]
[1674085235343,12.27215759,1521.7,1521.6,0.16512602]
[1674085239907,8.98041,1521.7,1521.6,0.16512602]
[1674085240117,0.066,1521.7,1521.6,0.16512602]
[1674085240374,2.24534,1521.8,1521.6,0.16512602]
[1674085240586,3.29174759,1521.7,1521.6,0.16512602]
[1674085242035,6.29174759,1521.7,1521.6,0.16512602]
[1674085242232,6.35774759,1521.7,1521.6,0.16512602]
[1674085243024,12.27215759,1521.7,1521.6,0.16512602]
[1674085243915,0.066,1521.7,1521.6,0.16512602]
[1674085244203,6.18827,1521.8,1521.6,0.34998413]
[1674085244399,6.25427,1521.8,1521.6,0.34998413]
[1674085244614,4.2828,1521.8,1521.6,1.34998413]
[1674085244836,4.2168,1521.8,1521.7,0.13499841]
[1674085246616,2.24534,1521.8,1521.6,0.34998413]
[1674085246844,2.24534,1521.8,1521.6,0.16512602]
[1674085247728,3.29174759,1521.7,1521.6,0.16512602]
[1674085247937,6.29174759,1521.7,1521.6,0.16512602]
[1674085248218,6.35774759,1521.7,1521.6,0.16512602]
[1674085248394,6.35774759,1521.7,1521.6,0.16207876]
[1674085249008,7.36734635,1521.7,1521.6,0.16207876]
[1674085249959,13.28175635,1521.7,1521.6,0.16207876]
[1674085251094,12.27215759,1521.7,1521.6,0.16207876]
[1674085253641,12.95435927,1521.7,1521.6,0.16207876]
[1674085254053,12.27215759,1521.7,1521.6,0.16207876]
[1674085255614,12.95435927,1521.7,1521.6,0.16207876]
[1674085256156,13.29538964,1521.7,1521.6,0.16207876]
[1674085256370,15.14448354,1521.7,1521.6,0.16207876]
[1674085256931,1.0,1521.6,1521.4,0.77282163]
[1674085257142,5.34168844,1521.5,1521.4,0.77282163]
[1674085257293,9.4290747,1521.5,1521.4,0.77282163]
[1674085257508,11.64791284,1521.5,1521.4,0.77282163]
[1674085257714,12.64791284,1521.5,1521.4,0.77282163]
[1674085258411,11.19699804,1521.5,1521.4,0.77282163]
[1674085258626,11.19699804,1521.5,1521.0,6.066]
[1674085258627,13.26977799,1521.5,1521.0,6.066]
[1674085258777,1.376,1521.2,1521.0,6.066]
[1674085258988,3.29174759,1521.1,1521.0,6.066]
[1674085259247,3.074,1521.1,1521.0,6.066]
[1674085259459,4.0185,1521.1,1521.0,6.066]
[1674085259674,7.0185,1521.1,1521.0,6.066]
[1674085259834,7.0845,1521.1,1521.0,6.066]
[1674085260042,12.34849759,1521.1,1521.0,6.066]
[1674085260267,13.25415959,1521.1,1521.0,6.066]